bitfinex/quotes_BTCUSD_20241205
["timestamp","ask_amount","ask_price","bid_price","bid_amount"]
[1733366526394,0.0005931,100680.0,100670.0,0.0017176]
[1733366526608,0.0005931,100680.0,100640.0,0.0017126]
[1733366526826,0.198668,100670.0,100630.0,0.00753807]
[1733366527033,0.19871,100650.0,100630.0,0.00753807]
[1733366527461,0.0005931,100680.0,100630.0,0.00753807]
[1733366527679,0.38986593,100660.0,100590.0,0.55913853]
[1733366527907,0.0005931,100680.0,100630.0,0.557374]
[1733366528129,0.0005931,100680.0,100640.0,0.02162983]
[1733366528341,0.0005931,100680.0,100650.0,0.53925814]
[1733366528548,0.0005931,100680.0,100650.0,0.55912714]
[1733366528986,0.198471,100770.0,100670.0,0.5375]
[1733366529205,0.22360059,100790.0,100710.0,0.5375]
[1733366529410,0.02516559,100790.0,100720.0,0.53925646]
[1733366529639,0.198488,100770.0,100720.0,0.5375]
[1733366529846,0.198488,100770.0,100700.0,0.0452]
[1733366530051,0.198488,100770.0,100710.0,0.00175655]
[1733366530275,0.1993268,100780.0,100710.0,0.00175655]
[1733366530506,0.1993158,100780.0,100710.0,0.00193033]
[1733366530719,0.02867579,100780.0,100710.0,0.00193074]
[1733366530936,0.0008588,100780.0,100720.0,0.019855]
[1733366531149,0.0008588,100780.0,100730.0,0.00175647]
[1733366531360,0.198444,100790.0,100730.0,0.00175647]
[1733366531567,0.00517549,100770.0,100720.0,0.00175667]
[1733366531811,0.00517549,100770.0,100710.0,0.00017378]
[1733366531812,0.20364649,100770.0,100710.0,0.0019309]
[1733366532027,0.00517549,100770.0,100710.0,0.00017378]
[1733366532235,0.00517549,100770.0,100710.0,0.02178831]
[1733366532444,0.198484,100770.0,100720.0,0.00175653]
[1733366532650,0.39692,100780.0,100710.0,0.01017378]
[1733366532869,0.39692,100780.0,100720.0,0.00175679]
[1733366533144,0.198434,100790.0,100720.0,0.00175696]
[1733366533364,4.6539724,101100.0,100710.0,0.01017378]
[1733366533572,0.15,100770.0,100720.0,0.00175707]
[1733366533785,0.15,100770.0,100720.0,0.02161207]
[1733366534009,0.15,100770.0,100730.0,0.00175679]
[1733366534219,0.15,100770.0,100710.0,0.03003078]
[1733366534458,0.145,100770.0,100720.0,0.02161159]
[1733366534673,0.4973166,100890.0,100730.0,0.00175681]
[1733366534881,0.198382,100820.0,100730.0,0.5834]
[1733366535097,0.198393,100810.0,100740.0,0.0017559]
[1733366535317,0.198382,100820.0,100740.0,0.0017559]
[1733366535519,0.19837,100830.0,100740.0,0.00175609]
[1733366535777,0.198312,100860.0,100760.0,0.05]
[1733366535988,0.198312,100860.0,100770.0,0.53925552]
[1733366536220,0.198255,100880.0,100770.0,0.00175552]
[1733366536425,0.198255,100880.0,100760.0,0.05]
[1733366536648,0.2008124,100890.0,100780.0,0.05]
[1733366536860,0.198255,100880.0,100780.0,0.5875]
[1733366537096,0.198275,100870.0,100790.0,0.00175517]
[1733366537318,0.198309,100860.0,100740.0,0.6194]
[1733366537557,0.003171,100890.0,100750.0,0.00175596]
[1733366537558,0.198275,100870.0,100750.0,0.00175596]
[1733366537765,0.00175599,100850.0,100730.0,0.0459]
[1733366537986,0.198374,100820.0,100740.0,0.00175649]
[1733366538206,0.00175599,100810.0,100740.0,0.00175649]
[1733366538421,0.00175599,100840.0,100740.0,0.00175675]
[1733366538662,0.00175599,100840.0,100730.0,0.0459]
[1733366538877,0.198374,100820.0,100740.0,0.00175575]
[1733366539099,0.00075599,100810.0,100740.0,0.00175575]
[1733366539323,0.19893022,100840.0,100740.0,0.05175575]
[1733366539557,0.19893022,100840.0,100760.0,0.05]
[1733366539558,0.00075599,100830.0,100760.0,0.05]
[1733366539774,0.00592256,100830.0,100770.0,0.00175572]
[1733366539997,0.20429156,100830.0,100770.0,0.00175572]
[1733366540228,0.198392,100820.0,100750.0,0.05175608]
[1733366540459,0.00075599,100810.0,100750.0,0.05175608]
[1733366540666,0.00516657,100830.0,100780.0,0.05]
[1733366540873,0.00516657,100830.0,100800.0,0.05]
[1733366541120,0.00059422,100840.0,100810.0,0.00175535]
[1733366541325,0.00575907,100840.0,100800.0,0.05]
[1733366541546,0.00059422,100840.0,100810.0,0.00175548]
[1733366541764,0.00516517,100830.0,100800.0,0.00175527]
[1733366542214,0.00416517,100830.0,100800.0,0.00175527]
[1733366542427,0.20251817,100830.0,100760.0,0.0765]
[1733366542640,0.19914499,100820.0,100760.0,0.0765]
[1733366542844,0.00075599,100820.0,100770.0,0.00175613]
[1733366543057,0.198388,100820.0,100770.0,0.001756]
[1733366543302,0.198449,100790.0,100720.0,0.0017176]
[1733366543532,0.198448,100790.0,100720.0,0.0017176]
[1733366543731,0.198446,100790.0,100720.0,0.003563]
[1733366543936,0.348529,100750.0,100720.0,0.003563]
[1733366544221,0.15,100750.0,100700.0,0.0002182]
[1733366544407,0.149,100750.0,100700.0,0.0002182]
[1733366544624,0.19853,100740.0,100700.0,0.00039198]
[1733366545084,0.198587,100720.0,100700.0,0.00039198]
[1733366545294,0.198587,100720.0,100690.0,0.0006]
[1733366545295,0.397172,100720.0,100690.0,0.0006]
[1733366545567,0.397172,100720.0,100700.0,0.05055734]
[1733366545568,0.198585,100720.0,100700.0,0.05055734]
[1733366545806,0.198585,100720.0,100700.0,0.03712804]
[1733366546041,0.198407,100810.0,100710.0,0.16288589]
[1733366546251,0.396937,100780.0,100710.0,0.21288589]
[1733366546469,0.198485,100770.0,100720.0,0.00175686]
[1733366546671,0.00175702,100760.0,100710.0,0.1489589]
[1733366546821,0.00175702,100760.0,100710.0,0.11183086]
[1733366547029,0.39830102,100780.0,100720.0,0.00175716]
[1733366547204,0.00175702,100770.0,100720.0,0.00175716]
[1733366547409,0.20227516,100830.0,100750.0,0.05]
[1733366547619,0.198336,100840.0,100750.0,0.05]
[1733366547620,0.19826,100880.0,100770.0,0.1263]
[1733366547848,0.0025764,100890.0,100800.0,0.05]
[1733366548156,0.0025764,100890.0,100830.0,0.05]
[1733366548363,0.0034352,100890.0,100840.0,0.00175468]
[1733366548550,0.0034352,100890.0,100830.0,0.00175482]
[1733366548708,0.05059471,100860.0,100810.0,0.1]
[1733366548915,0.05059471,100860.0,100820.0,0.00175503]
[1733366549295,0.05059471,100860.0,100800.0,0.05]
[1733366549296,0.05059471,100860.0,100810.0,0.66280922]
[1733366549502,0.05059471,100860.0,100840.0,0.05]
[1733366549744,0.04559471,100860.0,100850.0,0.00175471]
[1733366549962,0.04559471,100860.0,100830.0,0.00175481]
[1733366550191,0.0034352,100890.0,100870.0,0.05]
[1733366550332,0.0034352,100890.0,100880.0,0.10065351]
[1733366550548,0.05025316,101000.0,100920.0,0.05]
[1733366550714,0.001,101000.0,100930.0,0.05175312]
[1733366550990,0.198041,100990.0,100940.0,0.00175308]
[1733366551187,0.198061,100980.0,100920.0,0.075]
[1733366551393,0.39735089,101000.0,100930.0,0.0017533]
[1733366551627,0.19931189,101000.0,100930.0,0.0017533]
[1733366551866,0.00127289,101000.0,100940.0,0.1458]
[1733366552054,47.58991352,101030.0,100990.0,0.175]
[1733366552259,47.33371352,101030.0,101020.0,0.15]
[1733366552449,46.66681352,101030.0,101020.0,0.7545]
[1733366552651,46.64793204,101030.0,101020.0,0.7545]
[1733366552852,46.60112264,101030.0,101020.0,0.7045]
[1733366553204,46.52302264,101030.0,101020.0,0.87255233]
[1733366553334,46.29781073,101030.0,101020.0,0.87255233]
[1733366553741,46.29781073,101030.0,101020.0,1.00716741]
[1733366553962,46.13320313,101030.0,101020.0,1.00716741]
[1733366554565,46.08359031,101030.0,101020.0,1.00716741]
[1733366555024,45.60023562,101030.0,101020.0,1.00716741]
[1733366555273,45.18763138,101030.0,101020.0,1.00716741]
[1733366555471,44.9661955,101030.0,101020.0,1.00716741]
[1733366555721,44.75027542,101030.0,101020.0,0.87255233]
[1733366556199,44.53486728,101030.0,101020.0,0.66795233]
[1733366556416,44.5847356,101030.0,101020.0,0.66795233]
[1733366557082,44.5847356,101030.0,101020.0,0.62865879]
[1733366557289,44.5847356,101030.0,101020.0,0.71620542]
[1733366557495,44.2348356,101030.0,101020.0,0.90380542]
[1733366557712,44.2348356,101030.0,101020.0,0.85555233]
[1733366558149,44.2348356,101030.0,101020.0,0.78578949]
[1733366558368,44.2245323,101030.0,101020.0,0.31805233]
[1733366558795,44.2245323,101030.0,101020.0,0.85555233]
[1733366558801,43.12680234,101030.0,101020.0,0.7875]
[1733366559012,42.02495294,101030.0,101020.0,0.3255324]
[1733366559233,41.53023941,101030.0,101020.0,0.39358473]
[1733366559461,39.86451064,101030.0,101020.0,0.37618392]
[1733366559680,39.86451064,101030.0,101020.0,0.44423625]
[1733366559891,39.76559104,101030.0,101020.0,0.44423625]
[1733366560102,12.39535067,101030.0,101020.0,0.37618392]
[1733366560306,12.29616829,101030.0,101020.0,0.44423625]
[1733366560511,12.28586085,101030.0,101020.0,0.34423625]
[1733366560727,12.28573647,101030.0,101020.0,0.31805233]
[1733366560931,12.28374141,101030.0,101020.0,0.31805233]
[1733366561142,12.28274141,101030.0,101020.0,0.0454]
[1733366561350,12.27242893,101030.0,101020.0,0.0454]
[1733366561555,12.02735448,101030.0,101020.0,0.06980054]
[1733366561758,11.89017492,101030.0,101020.0,0.11520054]
[1733366561962,11.38177181,101030.0,101020.0,0.11520054]
[1733366562186,11.28933653,101030.0,101020.0,0.12520054]
[1733366562397,11.28417006,101030.0,101020.0,0.12520054]
[1733366562629,11.20274928,101030.0,101020.0,0.12520054]
[1733366562841,11.05397206,101030.0,101020.0,0.12520054]
[1733366563049,11.02353189,101030.0,101020.0,0.12345233]
[1733366563279,11.02353189,101030.0,101020.0,0.06979928]
[1733366563495,11.02353189,101030.0,101020.0,0.04166062]
[1733366563711,11.02353189,101030.0,101020.0,0.10971295]
[1733366563911,10.97789582,101030.0,101020.0,0.10971295]
[1733366564133,10.48757522,101030.0,101020.0,0.03991367]
[1733366564359,10.48757522,101030.0,101000.0,0.2]
[1733366564360,10.17931826,101030.0,101010.0,0.03693807]
[1733366564598,10.10636985,101030.0,101020.0,0.00087049]
[1733366564822,10.04909749,101030.0,101020.0,0.52597566]
[1733366565051,10.02401156,101030.0,101020.0,0.32137566]
[1733366565261,10.01901156,101030.0,101020.0,0.36345233]
[1733366565460,9.48211249,101030.0,101020.0,0.04207667]
[1733366565672,9.39614793,101030.0,101020.0,0.04294839]
[1733366565906,9.39596587,101030.0,101020.0,0.04294839]
[1733366566431,9.26561369,101030.0,101020.0,0.04294839]
[1733366566652,8.7933784,101030.0,101020.0,0.04294734]
[1733366566870,8.7933784,101030.0,101020.0,0.0429463]
[1733366567286,8.7883784,101030.0,101020.0,0.0429463]
[1733366567697,8.78831275,101030.0,101020.0,0.0429463]
[1733366567924,8.78831275,101030.0,101020.0,0.04294522]
[1733366568137,8.78831275,101030.0,101020.0,0.66032757]
[1733366568348,8.78743154,101030.0,101020.0,0.65945902]
[1733366568556,7.50336227,101030.0,101020.0,0.65945902]
[1733366568731,7.49285119,101030.0,101020.0,0.04207667]
[1733366568953,7.43953099,101030.0,101020.0,0.04294349]
[1733366569175,7.43953099,101030.0,101020.0,0.00086682]
[1733366569381,7.43953099,101030.0,101020.0,0.04294349]
[1733366569582,7.43939872,101030.0,101020.0,0.00086682]
[1733366569929,0.0508562,101030.0,101000.0,0.18046875]
[1733366570135,0.17845371,101330.0,101000.0,0.18046875]
[1733366570348,0.17905223,101330.0,101000.0,0.18046875]
[1733366570557,0.00155489,101320.0,101310.0,0.04207667]
[1733366570715,0.00155489,101320.0,101110.0,4e-05]
[1733366570891,0.0008562,101140.0,101000.0,0.18046875]
[1733366571110,0.0008562,101140.0,101000.0,0.27326875]
[1733366571487,0.00064374,101140.0,101010.0,0.05134645]
[1733366571707,0.00108976,101320.0,101020.0,0.00176122]
[1733366571920,0.00108976,101320.0,101010.0,0.04958505]
[1733366572130,0.00168789,101320.0,101020.0,0.00176122]
[1733366572332,0.00168789,101320.0,101030.0,0.04905734]
[1733366572544,0.00168789,101320.0,101050.0,0.04946375]
[1733366572755,0.00168789,101320.0,101070.0,0.04948073]
[1733366572962,0.05168789,101320.0,101000.0,0.27326875]
[1733366573195,0.05,101250.0,101000.0,0.32227698]
[1733366573395,0.05,101220.0,101010.0,0.05136913]
[1733366573670,0.05,101220.0,101000.0,0.06866875]
[1733366573918,0.05,101240.0,101020.0,0.00176122]
[1733366574125,0.05,101230.0,101050.0,0.61738235]
[1733366574452,0.05,101160.0,101050.0,0.61738235]
[1733366574693,0.05,101120.0,101020.0,0.61738235]
[1733366574904,0.03970305,101190.0,101080.0,0.01029695]
[1733366575125,0.03970305,101180.0,101050.0,0.01029695]
[1733366575371,0.03970305,101130.0,101000.0,0.06866875]
[1733366575596,0.03860188,101090.0,101000.0,0.06866875]
[1733366575797,0.0799,101280.0,101000.0,0.0692646]
[1733366575798,0.03860188,101080.0,101000.0,0.0692646]
[1733366576016,0.03860188,101070.0,101000.0,0.0692646]
[1733366576219,0.03860188,101060.0,101000.0,0.0692646]
[1733366576422,0.03860188,101040.0,101000.0,0.070977]
[1733366576628,0.03860188,101060.0,101000.0,0.070977]
[1733366576836,0.03969164,101070.0,101000.0,0.070977]
[1733366577053,0.00108976,101070.0,101000.0,0.070977]
[1733366577269,0.03847628,101050.0,101000.0,0.070977]
[1733366577480,0.03847628,101020.0,101000.0,0.070977]
[1733366577894,0.05,101130.0,101000.0,0.08007934]
[1733366578111,0.04089766,101070.0,101000.0,0.070977]
[1733366578324,0.0407975,101020.0,101000.0,0.070977]
[1733366578553,0.0475,101120.0,101000.0,0.070977]
[1733366579035,0.05,101080.0,101000.0,0.070977]
[1733366579235,0.0827,101090.0,101000.0,0.070977]
[1733366579472,0.0777,101090.0,101000.0,0.070977]
[1733366580092,0.03974622,101010.0,101000.0,0.070977]
[1733366580305,0.07766,101090.0,101000.0,0.070977]
[1733366580515,0.03974622,101050.0,101000.0,0.070977]
[1733366580740,0.05,101110.0,101000.0,0.070977]
[1733366580967,0.0975,101120.0,100900.0,0.04984523]
[1733366581177,0.0975,101120.0,100930.0,0.04923324]
[1733366581178,0.05,101090.0,100930.0,0.04923324]
[1733366581381,0.098,101060.0,101000.0,1.6975]
[1733366581661,0.048,101060.0,101000.0,1.6975]
[1733366581889,0.05,101050.0,101000.0,1.6975]
[1733366582113,0.05,101010.0,101000.0,1.2349275]
[1733366582358,0.048,101010.0,101000.0,0.51122192]
[1733366582792,0.04859547,101010.0,101000.0,0.51122192]
[1733366583013,0.04859547,101010.0,100790.0,0.04938575]
[1733366583234,0.04863547,101010.0,100900.0,0.0017633]
[1733366583444,0.04863547,101010.0,100770.0,0.04951601]
[1733366583445,0.05,100990.0,100770.0,0.04951601]
[1733366583667,0.05,100960.0,100790.0,0.05077419]
[1733366583899,0.05,100960.0,100760.0,0.0255893]
[1733366583900,0.00027289,100980.0,100810.0,0.04940612]
[1733366584118,0.00027289,100980.0,100890.0,0.0017124]
[1733366584964,0.00059547,100980.0,100890.0,0.0017124]
[1733366585834,4e-05,100990.0,100890.0,0.05142444]
[1733366586054,4e-05,100990.0,100890.0,0.05201991]
[1733366586531,0.0783,100980.0,100890.0,0.00230787]
[1733366586740,0.07834,100980.0,100890.0,0.00230787]
[1733366586892,0.0471,100970.0,100890.0,0.00230787]
[1733366587103,0.0471,100970.0,100860.0,0.12151933]
[1733366587306,0.05,100850.0,100710.0,0.04992006]
[1733366587508,0.04769509,100970.0,100810.0,0.00515025]
[1733366587714,0.0971,100970.0,100810.0,0.00515025]
[1733366588030,0.0471,100970.0,100790.0,0.00515025]
[1733366588238,0.04714,100970.0,100800.0,0.04941994]
[1733366588390,0.05,100940.0,100800.0,0.04941994]
[1733366588593,0.05,100930.0,100890.0,0.0017146]
[1733366588798,0.096,100920.0,100890.0,0.0017146]
[1733366588994,0.0787,100910.0,100890.0,0.0017146]
[1733366589247,0.0787,100910.0,100780.0,0.0017124]
[1733366589449,0.2787,100910.0,100780.0,0.0017124]
[1733366589677,0.0983,100900.0,100640.0,0.02287941]
[1733366589886,0.0483,100900.0,100780.0,0.00059471]
[1733366590524,0.0483,100900.0,100790.0,0.04901029]
[1733366590969,0.0483,100900.0,100780.0,0.00059471]
[1733366591660,0.0433,100900.0,100780.0,0.00059471]
[1733366592179,0.0433,100900.0,100790.0,0.0009776]
[1733366592588,0.041981,100900.0,100800.0,0.04949914]
[1733366592815,0.091981,100900.0,100780.0,0.00230931]
[1733366593058,0.041981,100900.0,100780.0,0.00230931]
[1733366593279,0.091981,100900.0,100780.0,0.00230931]
[1733366593497,0.041981,100900.0,100780.0,0.00230931]
[1733366593969,0.091981,100900.0,100780.0,0.00230931]
[1733366594180,0.05,100880.0,100780.0,0.00230931]
[1733366594419,0.0758,100860.0,100780.0,0.00230931]
[1733366595207,0.0758,100860.0,100790.0,0.0509853]
[1733366595404,0.03902957,100860.0,100800.0,0.00197481]
[1733366595607,0.15,100900.0,100780.0,0.00230931]
[1733366595830,0.15,100900.0,100800.0,0.04949914]
[1733366596005,0.00761479,100880.0,100810.0,0.00197461]
[1733366596363,0.00761479,100870.0,100780.0,0.19469452]
[1733366596558,0.15,100900.0,100780.0,0.19469452]
[1733366596794,0.00761479,100880.0,100780.0,0.19469452]
[1733366596969,0.15,100900.0,100780.0,0.15230931]
[1733366596970,0.00761479,100890.0,100780.0,0.15230931]
[1733366597121,0.15761479,100900.0,100790.0,0.04238521]
[1733366597333,0.15,100900.0,100800.0,0.04238521]
[1733366597530,0.15,100900.0,100810.0,0.04238521]
[1733366597778,0.15027294,100910.0,100850.0,0.04238521]
[1733366597982,0.15027294,100910.0,100790.0,0.04901029]
[1733366597983,0.15027294,100910.0,100870.0,0.04238521]
[1733366598157,0.15027294,100910.0,100880.0,0.04228521]
[1733366598356,0.15027294,100910.0,100860.0,0.7074558]
[1733366598583,0.1244,100900.0,100860.0,0.7074558]
[1733366598812,0.00771479,100880.0,100860.0,0.3231558]
[1733366599040,0.15771479,100910.0,100860.0,0.00017384]
[1733366599273,0.15,100910.0,100860.0,0.00017384]
[1733366600596,0.15771479,100910.0,100860.0,0.00017384]
[1733366600880,0.15,100910.0,100880.0,0.02]
[1733366602791,0.15,100910.0,100890.0,0.00088183]
[1733366602997,0.00771479,100890.0,100860.0,0.00017384]
[1733366603204,0.14381479,100910.0,100860.0,0.00017384]
[1733366603408,0.15,100920.0,100860.0,0.00017384]
[1733366604061,0.00771479,100880.0,100860.0,0.00017384]
[1733366604289,0.00771479,100910.0,100860.0,0.00017384]
[1733366604510,0.15,100920.0,100860.0,0.00017384]
[1733366604741,0.04396792,100900.0,100860.0,0.00017384]
[1733366604967,0.00219238,100910.0,100860.0,0.00017384]
[1733366605177,0.03836644,100850.0,100790.0,0.0017146]
[1733366605389,0.03836644,100850.0,100790.0,0.00230931]
[1733366605600,0.00734973,100910.0,100780.0,0.12445338]
[1733366605804,0.03836644,100770.0,100680.0,0.01376861]
[1733366606111,0.00219238,100910.0,100760.0,0.01732037]
[1733366606312,0.005167,100850.0,100760.0,0.01732037]
[1733366606735,0.00219238,100910.0,100680.0,0.0034292]
[1733366606954,0.03836644,100770.0,100680.0,0.0034292]
[1733366607160,0.03836644,100830.0,100680.0,0.0034292]
[1733366607373,0.00246529,100910.0,100680.0,0.0034292]
[1733366607583,0.00219504,100900.0,100680.0,0.0034292]
[1733366607788,0.03836644,100800.0,100680.0,0.0034292]
[1733366607985,0.03836644,100760.0,100680.0,0.0034292]
[1733366608310,0.03836644,100740.0,100680.0,0.0034292]
[1733366608542,0.03836644,100730.0,100680.0,0.0034292]
[1733366608892,0.03836644,100760.0,100680.0,0.0051618]
[1733366609132,0.03836644,100750.0,100680.0,0.0051618]
[1733366609375,0.03836644,100730.0,100680.0,0.00533575]
[1733366609588,0.03836644,100760.0,100680.0,0.00533575]
[1733366609791,0.0661009,100920.0,100690.0,0.00175696]
[1733366609996,0.00218572,100910.0,100690.0,0.00175696]
[1733366610199,0.00218572,100910.0,100690.0,0.00175631]
[1733366610378,0.00218572,100910.0,100710.0,0.05]
[1733366610618,0.00222572,100960.0,100710.0,0.05]
[1733366610840,0.00218572,100950.0,100700.0,0.09907146]
[1733366611041,0.00222572,100960.0,100720.0,0.00175511]
[1733366611171,0.00218572,100950.0,100730.0,0.05]
[1733366611377,4e-05,100960.0,100740.0,0.00175463]
[1733366611587,0.00222572,100960.0,100730.0,0.05]
[1733366611981,0.00222572,100960.0,100700.0,0.05]
[1733366612266,0.00222572,100960.0,100740.0,0.05]
[1733366612476,0.0049,100830.0,100750.0,0.00175444]
[1733366612681,0.0049,100830.0,100720.0,0.0451]
[1733366612682,0.0049,100830.0,100760.0,0.00175523]
[1733366612885,0.0049,100830.0,100730.0,0.00175505]
[1733366613149,4e-05,100960.0,100690.0,0.13094056]
[1733366613150,0.0049,100810.0,100690.0,0.13094056]
[1733366613350,0.0049,100850.0,100730.0,0.0451]
[1733366613556,0.0049,100860.0,100740.0,0.00175525]
[1733366613768,0.00059444,100850.0,100750.0,0.0468553]
[1733366613995,0.00059444,100850.0,100750.0,0.0017553]
[1733366614203,0.0049,100820.0,100710.0,0.09610209]
[1733366614410,0.0049,100790.0,100710.0,0.00373168]
[1733366614602,0.0049,100770.0,100710.0,0.00175512]
[1733366614817,0.0049,100760.0,100700.0,0.00175646]
[1733366615000,0.0049,100780.0,100710.0,0.00175628]
[1733366615211,0.0049,100770.0,100720.0,0.00175623]
[1733366615416,0.0049,100770.0,100690.0,0.00175638]
[1733366615623,0.00309202,100960.0,100690.0,0.00175638]
[1733366615624,0.0049,100810.0,100690.0,0.00175638]
[1733366615833,0.0049,100790.0,100690.0,0.00193033]
[1733366616049,0.0049,100820.0,100690.0,0.00193033]
[1733366616259,0.0049,100860.0,100690.0,0.00193033]
[1733366616472,0.0049,100830.0,100690.0,0.04703033]
[1733366616704,0.0049,100830.0,100720.0,0.0451]
[1733366616898,0.0049,100830.0,100730.0,0.00175521]
[1733366617126,0.0049,100850.0,100740.0,0.00175553]
[1733366617356,0.0049,100830.0,100700.0,0.0451]
[1733366617564,0.0049,100840.0,100730.0,0.0451]
[1733366617758,0.0049,100860.0,100740.0,0.00175505]
[1733366617970,0.0049,100860.0,100750.0,0.00175487]
[1733366618190,0.00059482,100860.0,100770.0,0.0451]
[1733366618416,0.00059482,100860.0,100780.0,0.00175413]
[1733366618618,0.00059482,100860.0,100790.0,0.0017541]
[1733366618866,0.00059482,100860.0,100730.0,0.79601531]
[1733366619083,0.00059482,100860.0,100720.0,0.78443248]
[1733366619084,0.0049,100820.0,100770.0,0.71331531]
[1733366619302,0.0049,100820.0,100780.0,0.00175581]
[1733366619514,0.0049,100830.0,100750.0,0.00175605]
[1733366619825,0.0049,100790.0,100750.0,0.00175605]
[1733366620275,0.0049,100810.0,100750.0,0.00175605]
[1733366620472,0.00309202,100960.0,100760.0,0.78443248]
[1733366620473,0.0049,100820.0,100760.0,0.78443248]
[1733366620697,0.0049,100850.0,100770.0,0.00175597]
[1733366621126,0.0049,100890.0,100770.0,0.00175597]
[1733366621340,0.0049,100890.0,100870.0,0.71974376]
[1733366621545,0.0049,100900.0,100880.0,0.0017545]
[1733366621749,0.0049,100910.0,100870.0,0.72033783]
[1733366621954,0.0049,100910.0,100880.0,0.00175438]
[1733366622291,0.0049,100920.0,100880.0,0.00175438]
[1733366622709,0.0049,100940.0,100910.0,0.78443248]
[1733366622911,0.0049,100950.0,100920.0,0.00175355]
[1733366623338,0.0049,100950.0,100910.0,0.78443248]
[1733366623339,0.0009063,100960.0,100910.0,0.78443248]
[1733366623580,0.0009063,100960.0,100880.0,0.72067712]
[1733366623785,0.0049,100910.0,100880.0,0.72067712]
[1733366623993,0.0049,100910.0,100860.0,0.01973]
[1733366624223,0.00309202,100960.0,100860.0,0.01973]
[1733366624445,0.00218572,100950.0,100850.0,0.70893124]
[1733366624662,0.0005,100920.0,100850.0,0.70893124]
[1733366624882,0.0005,100920.0,100740.0,0.97542426]
[1733366625089,0.00109482,100920.0,100770.0,0.01973]
[1733366625312,0.00109482,100920.0,100780.0,0.00175504]
[1733366626392,0.00109482,100920.0,100810.0,0.01973]
[1733366626595,0.00109482,100920.0,100820.0,0.00175462]
[1733366626755,0.00109482,100920.0,100830.0,0.02148433]
[1733366626955,0.00109482,100920.0,100840.0,0.01973]
[1733366627167,0.00109482,100920.0,100850.0,0.00175372]
[1733366627368,0.00109482,100920.0,100890.0,0.01973]
[1733366627602,0.0009063,100960.0,100900.0,0.00175363]
[1733366627831,0.0009063,100960.0,100910.0,0.00175294]
[1733366628149,0.0009063,100960.0,100920.0,0.00175284]
[1733366628323,0.0009063,100960.0,100930.0,0.00175248]
[1733366628581,0.0009063,100960.0,100940.0,0.01973]
[1733366629014,0.0009063,100960.0,100930.0,0.57489376]
[1733366629238,0.00478462,101010.0,100930.0,0.54233141]
[1733366629489,0.00218572,101000.0,100880.0,0.01973]
[1733366629686,0.00218572,101000.0,100930.0,0.00017395]
[1733366629928,0.00064192,101020.0,100930.0,0.00017395]
[1733366630362,0.03,100880.0,100770.0,0.76499475]
[1733366630580,0.03,100880.0,100790.0,0.01973]
[1733366630794,0.03,100900.0,100810.0,0.01973]
[1733366631000,0.03,100880.0,100830.0,0.01973]
[1733366631228,0.1234,100880.0,100820.0,0.04736412]
[1733366631444,0.1234,100880.0,100830.0,0.00087763]
[1733366631650,0.1234,100880.0,100850.0,0.01973]
[1733366631852,0.1234,100880.0,100870.0,0.06973]
[1733366632080,0.03,101010.0,100930.0,0.04973]
[1733366632292,0.00219058,101000.0,100930.0,0.04973]
[1733366632522,0.00219058,101000.0,100940.0,0.00087196]
[1733366632523,0.03,100980.0,100940.0,0.00087196]
[1733366632939,0.0528324,101020.0,100940.0,0.00087196]
[1733366633145,0.03,101000.0,100940.0,0.00087196]
[1733366633351,0.03,101000.0,100940.0,0.00104598]
[1733366633567,0.03,100980.0,100930.0,0.04973]
[1733366633771,0.00219168,100970.0,100950.0,0.04973]
[1733366633973,0.00219168,100970.0,100940.0,0.04691392]
[1733366633974,0.03,100910.0,100890.0,0.04973]
[1733366634181,0.03,100910.0,100900.0,0.05555495]
[1733366634612,0.02240792,100910.0,100900.0,0.05555495]
[1733366635140,0.02240792,100910.0,100900.0,0.04973]
[1733366635257,0.02460006,100910.0,100900.0,0.05201475]
[1733366635479,0.02460058,100910.0,100900.0,0.05201475]
[1733366635697,0.02460051,100910.0,100880.0,0.00059482]
[1733366635952,0.00219321,100900.0,100890.0,0.00226734]
[1733366636184,0.00219321,100900.0,100870.0,0.62222503]
[1733366636414,0.02240792,100880.0,100800.0,0.80839633]
[1733366636636,0.02240792,100880.0,100800.0,0.047]
[1733366636858,0.02236115,100880.0,100790.0,0.1298]
[1733366637297,0.02236115,100880.0,100800.0,0.01973]
[1733366637515,0.02455465,100870.0,100800.0,0.82812633]
[1733366637752,0.02236115,100870.0,100800.0,0.82812633]
[1733366637978,0.02176115,100870.0,100800.0,0.82812633]
[1733366638402,0.02395508,100860.0,100800.0,0.82812633]
[1733366638626,0.02395508,100860.0,100800.0,0.01973]
[1733366639096,0.02395508,100860.0,100820.0,0.01973]
[1733366639308,0.02395508,100860.0,100820.0,0.75088926]
[1733366639516,0.02176115,100850.0,100840.0,0.01973]
[1733366639738,0.02176115,100850.0,100840.0,0.02199628]
[1733366639959,0.02176115,100850.0,100830.0,0.01973]
[1733366640202,0.00219436,100840.0,100830.0,0.01973]
[1733366640432,0.02176115,100850.0,100830.0,0.01973]
[1733366640654,0.02176115,100850.0,100820.0,0.0001742]
[1733366640655,0.02395544,100840.0,100820.0,0.0001742]
[1733366640878,0.02176115,100840.0,100820.0,0.0199042]
[1733366641325,0.00219472,100830.0,100820.0,0.0199042]
[1733366641782,0.09354324,100830.0,100820.0,0.0199042]
[1733366641990,0.09354324,100830.0,100800.0,0.01973]
[1733366641991,0.07176115,100810.0,100800.0,0.01973]
[1733366642204,0.02176115,100810.0,100770.0,0.73103781]
[1733366642419,0.00219564,100800.0,100770.0,0.73163188]
[1733366642656,0.00219529,100800.0,100770.0,0.73163188]
[1733366643136,0.02176115,100800.0,100770.0,0.00059407]
[1733366643374,0.02176115,100800.0,100780.0,0.01973]
[1733366644072,0.02176115,100790.0,100770.0,0.00059407]
[1733366644695,0.01224309,100780.0,100770.0,0.02032407]
[1733366644904,0.00724309,100780.0,100770.0,0.05032407]
[1733366645123,0.00724309,100780.0,100770.0,0.09732407]
[1733366645386,0.00724309,100780.0,100770.0,0.05032407]
[1733366645828,0.15,100870.0,100810.0,0.04973]
[1733366646050,0.15,100870.0,100760.0,0.80839633]
[1733366646051,0.00219457,100860.0,100850.0,0.78120994]
[1733366646277,0.00219457,100860.0,100850.0,0.2801388]
[1733366646710,0.15,100870.0,100850.0,0.2801388]
[1733366646931,0.14476366,100870.0,100850.0,0.04973]
[1733366647131,0.00219388,100910.0,100850.0,0.04990445]
[1733366647593,0.00219388,100910.0,100850.0,0.09690445]
[1733366647805,0.00219283,100940.0,100870.0,0.09673]
[1733366648039,0.15,100950.0,100910.0,0.04973]